fUST/lending_fUST_20250601
["ID","MTS","AMOUNT","RATE_DAILY","PERIOD"]
[363517585,1748748656911,-1830.1,0.00019178,2]
[363517586,1748748656920,-430.0,0.00019178,2]
[363517587,1748748656930,-430.0,0.00019178,2]
[363517588,1748748656939,-637.65,0.00019178,2]
[363517589,1748748656950,-954.35,0.00019178,2]
[363517590,1748748656959,-300.0,0.00019178,2]
[363517591,1748748656969,-660.33,0.00019178,2]
[363517592,1748748656979,-430.0,0.00019178,2]
[363517593,1748748656989,-1561.7,0.00019178,2]
[363517594,1748748656999,-452.99,0.00019178,2]
[363517595,1748748657009,-430.0,0.00019178,2]
[363517596,1748748657019,-430.0,0.00019178,2]
[363517597,1748748657029,-430.0,0.00019178,2]
[363517598,1748748657039,-270.0,0.00019178,2]
[363517599,1748748657048,-527.07,0.00019178,2]
[363517600,1748748657059,-430.0,0.00019178,2]
[363517601,1748748657069,-500.0,0.00019178,2]
[363517602,1748748657080,-400.0,0.00019178,2]
[363517603,1748748657090,-688.59,0.00019178,2]
[363517604,1748748657100,-430.0,0.00019178,2]
[363517605,1748748657110,-1200.71,0.00019178,2]
[363517606,1748748657120,-430.0,0.00019178,2]
[363517607,1748748657129,-430.0,0.00019178,2]
[363517608,1748748657139,-430.91,0.00019178,2]
[363517609,1748748657151,-384.36,0.00019178,2]
[363517610,1748748657161,-1307.73,0.00019178,2]
[363517611,1748748657171,-430.0,0.00019178,2]
[363517612,1748748657182,-1644.6,0.00019178,2]
[363517613,1748748657192,-430.0,0.00019178,2]
[363517614,1748748657203,-752.79,0.00019178,2]
[363517615,1748748657213,-430.0,0.00019178,2]
[363517616,1748748657223,-430.0,0.00019178,2]
[363517617,1748748657232,-430.0,0.00019178,2]
[363517618,1748748657242,-430.0,0.00019178,2]
[363517619,1748748657251,-430.0,0.00019178,2]
[363517620,1748748657261,-430.0,0.00019178,2]
[363517621,1748748657271,-430.0,0.00019178,2]
[363517622,1748748657280,-430.0,0.00019178,2]
[363517623,1748748657290,-430.0,0.00019178,2]
[363517624,1748748657300,-430.0,0.00019178,2]
[363517625,1748748657310,-1068.7,0.00019178,2]
[363517626,1748748657320,-715.84,0.00019178,2]
[363517627,1748748657329,-430.0,0.00019178,2]
[363517628,1748748657339,-169.975947,0.00019178,2]
[363517629,1748748657348,-2866.2,0.00019224,2]
[363517630,1748748657358,-2866.2,0.00019224,2]
[363517631,1748748657368,-2866.2,0.00019224,2]
[363517632,1748748657377,-2866.2,0.00019224,2]
[363517633,1748748657387,-1149.11783406,0.00019383,2]
[363517634,1748748657397,-151.45129034,0.00019418,2]
[363517635,1748748657409,-500.0,0.00019418,2]
[363517636,1748748657418,-500.0,0.00019418,2]
[363517637,1748748657428,-439.60992765,0.00019418,2]
[363517638,1748748657438,-500.0,0.00019418,2]
[363517639,1748748657448,-500.59788816,0.00019418,2]
[363517640,1748748657457,-501.32520283,0.00019418,2]
[363517641,1748748657467,-502.41099955,0.00019418,2]
[363517642,1748748657476,-500.95315545,0.00019418,2]
[363517643,1748748657486,-500.90904298,0.00019418,2]
[363517644,1748748657496,-500.0,0.00019418,2]
[363517645,1748748657506,-503.65679718,0.00019418,2]
[363517646,1748748657515,-501.08109152,0.00019418,2]
[363517647,1748748657525,-500.0,0.00019418,2]
[363517648,1748748657534,-600.0,0.00019418,2]
[363517649,1748748657544,-500.0,0.00019418,2]
[363517650,1748748657554,-500.0,0.00019418,2]
[363517651,1748748657565,-500.0,0.00019418,2]
[363517652,1748748657575,-501.55848555,0.00019418,2]
[363517653,1748748657584,-500.0,0.00019418,2]
[363517654,1748748657594,-500.0,0.00019418,2]
[363517655,1748748657602,-500.90387996,0.00019418,2]
[363517656,1748748657611,-152.51934898,0.0001943,2]
[363517657,1748748657620,-152.7225759,0.0001945,2]
[363517658,1748748657630,-300.0,0.0001945,2]
[363517659,1748748657638,-300.0,0.0001945,2]
[363517660,1748748657651,-207.4,0.0001945,2]
[363517661,1748748657663,-300.0,0.0001945,2]
[363517662,1748748657672,-300.0,0.0001945,2]
[363517663,1748748657682,-300.0,0.0001945,2]
[363517664,1748748657695,-300.0,0.0001945,2]
[363517665,1748748657706,-300.0,0.0001945,2]
[363517666,1748748657716,-300.0,0.0001945,2]
[363517667,1748748657725,-300.0,0.0001945,2]
[363517668,1748748657735,-300.0,0.0001945,2]
[363517669,1748748657744,-300.0,0.0001945,2]
[363517670,1748748657754,-300.0,0.0001945,2]
[363517671,1748748657763,-300.0,0.0001945,2]
[363517672,1748748657773,-300.0,0.0001945,2]
[363517673,1748748657784,-300.0,0.0001945,2]
[363517674,1748748657793,-339.6,0.00019452,2]
[363517675,1748748657803,-1830.1,0.00019452,2]
[363517676,1748748657813,-430.0,0.00019452,2]
[363517677,1748748657822,-492.4,0.00019452,2]
[363517678,1748748657833,-637.65,0.00019452,2]
[363517679,1748748657844,-954.35,0.00019452,2]
[363517680,1748748657854,-330.846981,0.00019452,2]
[363517681,1748748657865,-330.846981,0.00019452,2]
[363517682,1748748657874,-660.33,0.00019452,2]
[363517683,1748748657884,-151.0,0.00019452,2]
[363517684,1748748657893,-430.0,0.00019452,2]
[363517685,1748748657902,-1561.7,0.00019452,2]
[363517686,1748748657912,-452.99,0.00019452,2]
[363517687,1748748657923,-430.0,0.00019452,2]
[363517688,1748748657932,-430.0,0.00019452,2]
[363517689,1748748657942,-430.0,0.00019452,2]
[363517690,1748748657951,-527.07,0.00019452,2]
[363517691,1748748657961,-430.0,0.00019452,2]
[363517692,1748748657971,-151.0,0.00019452,2]
[363517693,1748748657981,-688.59,0.00019452,2]
[363517694,1748748657991,-1639.601407,0.00019452,2]
[363517695,1748748658002,-1639.601407,0.00019452,2]
[363517696,1748748658012,-532.5,0.00019452,2]
[363517697,1748748658022,-1200.71,0.00019452,2]
[363517698,1748748658031,-430.0,0.00019452,2]
[363517699,1748748658041,-430.0,0.00019452,2]
[363517700,1748748658129,-430.91,0.00019452,2]
[363517701,1748748658139,-1307.73,0.00019452,2]
[363517702,1748748658149,-474.36,0.00019452,2]
[363517703,1748748658159,-1644.6,0.00019452,2]
[363517704,1748748658170,-151.20587553,0.00019452,2]
[363517705,1748748658184,-278.79412447,0.00019452,2]
[363517706,1748748658197,-1109.769464,0.00019452,2]
[363517707,1748748658208,-1109.769464,0.00019452,2]
[363517708,1748748658217,-752.79,0.00019452,2]
[363517709,1748748658227,-1068.7,0.00019452,2]
[363517710,1748748658238,-715.84,0.00019452,2]
[363517711,1748748658248,-430.0,0.00019452,2]
[363517712,1748748658257,-3126.7,0.00019498,2]
[363517713,1748748658266,-501.96740928,0.000195,2]
[363517714,1748748658276,-501.74878699,0.000195,2]
[363517715,1748748658285,-500.0,0.000195,2]
[363517716,1748748658294,-501.21078997,0.000195,2]
[363517717,1748748658303,-309.6106627,0.00019577,2]
[363517718,1748748658313,-500.0,0.00019655,2]
[363517719,1748748658322,-272.30645922,0.00019655,2]
[363517720,1748748658449,-456.7507858,0.00016438,2]
[363517721,1748748658458,-430.0,0.00016438,2]
[363517722,1748748658468,-300.0,0.00016711,2]
[363517723,1748748658478,-430.0,0.00016712,2]
[363517724,1748748658487,-332.37080659,0.00016986,2]
[363517725,1748748658499,-97.62919341,0.00016986,2]
[363517726,1748748658509,-247.32408467,0.0001726,2]
[363517727,1748748658521,-182.67591533,0.0001726,2]
[363517728,1748748658531,-259.98179963,0.00019655,2]
[363517729,1748748658540,-500.78736554,0.00019655,2]
[363517730,1748748658550,-1149.11783406,0.00019659,2]
[363517731,1748748658560,-457.797243,0.00019659,2]
[363517732,1748748658570,-457.797243,0.00019659,2]
[363517733,1748748658580,-881.539958,0.00019659,2]
[363517734,1748748658589,-690.3026407,0.00019659,2]
[363517735,1748748658605,-430.0,0.00017534,2]
[363517736,1748748658615,-191.2373173,0.00019659,2]
[363517737,1748748658625,-70.71851294,0.00019699,2]
[363517738,1748748658636,-494.12948706,0.00019699,2]
[363517739,1748748658646,-177.92407056,0.00019699,2]
[363517740,1748748658656,-151.0,0.00019726,2]
[363517741,1748748658666,-151.0,0.00019726,2]
[363517742,1748748658676,-151.0,0.00019726,2]
[363517743,1748748658686,-430.0,0.00019726,2]
[363517744,1748748658696,-637.65,0.00019726,2]
[363517745,1748748658708,-954.35,0.00019726,2]
[363517746,1748748658718,-660.33,0.00019726,2]
[363517747,1748748658728,-430.0,0.00019726,2]
[363517748,1748748658739,-1561.7,0.00019726,2]
[363517749,1748748658748,-452.99,0.00019726,2]
[363517750,1748748658759,-430.0,0.00019726,2]
[363517751,1748748658768,-430.0,0.00019726,2]
[363517752,1748748658779,-430.0,0.00019726,2]
[363517753,1748748658790,-527.07,0.00019726,2]
[363517754,1748748658801,-430.0,0.00019726,2]
[363517755,1748748658810,-688.59,0.00019726,2]
[363517756,1748748658820,-1200.71,0.00019726,2]
[363517757,1748748658830,-430.0,0.00019726,2]
[363517758,1748748658839,-430.0,0.00019726,2]
[363517759,1748748658849,-430.91,0.00019726,2]
[363517760,1748748658858,-1307.73,0.00019726,2]
[363517761,1748748658867,-1644.6,0.00019726,2]
[363517762,1748748658877,-430.0,0.00019726,2]
[363517763,1748748658887,-752.79,0.00019726,2]
[363517764,1748748658896,-1068.7,0.00019726,2]
[363517765,1748748658906,-715.84,0.00019726,2]
[363517766,1748748658916,-430.0,0.00019726,2]
[363517767,1748748658927,-500.0,0.00019874,2]
[363517768,1748748658936,-2721.37842287,0.000199,2]
[363517769,1748748658948,-2086.8534869,0.000199,2]
[363517770,1748748658994,-131.40733721,0.000199,2]
[363517771,1748748659004,-1149.11783406,0.00019934,2]
[363517772,1748748659013,-1003.47429644,0.00019966,2]
[363517773,1748748659023,-502.84354349,0.00019966,2]
[363517774,1748748659032,-504.07400437,0.00019966,2]
[363517775,1748748659042,-1002.64960961,0.00019966,2]
[363517776,1748748659051,-1200.0,0.00019966,2]
[363517777,1748748659061,-598.80731063,0.00019966,2]
[363517778,1748748659186,-430.0,0.00016438,2]
[363517779,1748748659196,-430.0,0.00016438,2]
[363517780,1748748659205,-430.0,0.00016712,2]
[363517781,1748748659215,-430.0,0.00016712,2]
[363517782,1748748659224,-430.0,0.00016986,2]
[363517783,1748748659233,-430.0,0.0001726,2]
[363517784,1748748659244,-430.0,0.00017534,2]
[363517785,1748748659254,-430.0,0.00017808,2]
[363517786,1748748659263,-430.0,0.00017808,2]
[363517787,1748748659274,-430.0,0.00018082,2]
[363517788,1748748659284,-150.08,0.00018082,2]
[363517789,1748748659293,-420.0,0.00018257,2]
[363517790,1748748659304,-430.0,0.00018356,2]
[363517791,1748748659313,-430.0,0.0001863,2]
[363517792,1748748659323,-430.0,0.00018904,2]
[363517793,1748748659332,-430.0,0.00019178,2]
[363517794,1748748659342,-430.0,0.00019452,2]
[363517795,1748748659352,-430.0,0.00019726,2]
[363517796,1748748659362,-401.19268937,0.00019966,2]
[363517797,1748748659371,-1000.0,0.00019966,2]
[363517798,1748748659381,-1000.0,0.00019966,2]
[363517799,1748748659391,-501.69412432,0.00019966,2]
[363517800,1748748659402,-1000.0,0.00019966,2]
[363517801,1748748659411,-597.58783639,0.00019973,2]
[363517802,1748748659421,-501.49010835,0.00019973,2]
[363517803,1748748659431,-200.6586301,0.00019973,2]
[363517804,1748748659441,-500.0,0.00019973,2]
[363517805,1748748659452,-326.78412022,0.00019973,2]
[363517806,1748748659462,-500.0,0.00019973,2]
[363517807,1748748659471,-500.0,0.00019973,2]
[363517808,1748748659480,-501.47161605,0.00019973,2]
[363517809,1748748659490,-500.0,0.00019973,2]
[363517810,1748748659500,-500.0,0.00019973,2]
[363517811,1748748659510,-151.910188,0.0002,2]
[363517812,1748748659519,-151.0,0.0002,2]
[363517813,1748748659606,-203.557395,0.0002,2]
[363517814,1748748659616,-203.557395,0.0002,2]
[363517815,1748748659626,-1322.167745,0.0002,2]
[363517816,1748748659636,-1322.167745,0.0002,2]
[363517817,1748748659646,-2212.0,0.0002,2]
[363517818,1748748659657,-510.0,0.0002,2]
[363517819,1748748659667,-8403.1821159,0.0002,2]
[363517820,1748748659708,-191596.8178841,0.0002,2]
[363517821,1748748659720,-300.72780333,0.0002,2]
[363517822,1748748659729,-430.0,0.0002,2]
[363517823,1748748659740,-206722.0,0.0002,2]
[363517824,1748748659750,-637.65,0.0002,2]
[363517825,1748748659760,-330.846981,0.0002,2]
[363517826,1748748659771,-330.846981,0.0002,2]
[363517827,1748748659781,-660.33,0.0002,2]
[363517828,1748748659791,-151.99321984,0.0002,2]
[363517829,1748748659800,-151.0,0.0002,2]
[363517830,1748748659810,-223.96,0.0002,2]
[363517831,1748748659819,-1561.7,0.0002,2]
[363517832,1748748659829,-452.99,0.0002,2]
[363517833,1748748659838,-250.61235132,0.0002,2]
[363517834,1748748659847,-190.45893313,0.0002,2]
[363517835,1748748659856,-430.0,0.0002,2]
[363517836,1748748659866,-430.0,0.0002,2]
[363517837,1748748659876,-7934.5225607,0.0002,2]
[363517838,1748748659886,-527.07,0.0002,2]
[363517839,1748748659896,-430.0,0.0002,2]
[363517840,1748748659906,-151.0,0.0002,2]
[363517841,1748748659916,-688.59,0.0002,2]
[363517842,1748748659926,-1639.601407,0.0002,2]
[363517843,1748748659936,-1639.601407,0.0002,2]
[363517844,1748748659945,-1200.71,0.0002,2]
[363517845,1748748659955,-430.0,0.0002,2]
[363517846,1748748659965,-430.0,0.0002,2]
[363517847,1748748659974,-430.91,0.0002,2]
[363517848,1748748659984,-1307.73,0.0002,2]
[363517849,1748748659993,-1644.6,0.0002,2]
[363517850,1748748660003,-430.0,0.0002,2]
[363517851,1748748660012,-1109.769464,0.0002,2]
[363517852,1748748660022,-4000.0,0.0002,4]
[363517853,1748748660032,-1109.769464,0.0002,2]
[363517854,1748748660042,-752.79,0.0002,2]
[363517855,1748748660051,-1068.7,0.0002,2]
[363517856,1748748660061,-715.84,0.0002,2]
[363517857,1748748660071,-430.0,0.0002,2]
[363517858,1748748660079,-525.28,0.0002,2]
[363517859,1748748660088,-502.67939293,0.00020048,2]
[363517860,1748748660097,-691.0,0.00020173,2]
[363517861,1748748660107,-692.890512,0.00020187,2]
[363517862,1748748660116,-539.34304447,0.00020202,2]
[363517863,1748748660126,-1149.11783406,0.0002021,2]
[363517864,1748748660136,-600.0,0.0002026,2]
[363517865,1748748660146,-151.0,0.00020273,2]
[363517866,1748748660156,-430.0,0.00020273,2]
[363517867,1748748660165,-637.65,0.00020273,2]
[363517868,1748748660175,-660.33,0.00020273,2]
[363517869,1748748660186,-1561.7,0.00020273,2]
[363517870,1748748660195,-452.99,0.00020273,2]
[363517871,1748748660205,-430.0,0.00020273,2]
[363517872,1748748660215,-430.0,0.00020273,2]
[363517873,1748748660225,-527.07,0.00020273,2]
[363517874,1748748660234,-430.0,0.00020273,2]
[363517875,1748748660244,-688.59,0.00020273,2]
[363517876,1748748660254,-1200.71,0.00020273,2]
[363517877,1748748660264,-430.0,0.00020273,2]
[363517878,1748748660273,-430.0,0.00020273,2]
[363517879,1748748660282,-430.91,0.00020273,2]
[363517880,1748748660292,-1307.73,0.00020273,2]
[363517881,1748748660302,-1644.6,0.00020273,2]
[363517882,1748748660312,-430.0,0.00020273,2]
[363517883,1748748660322,-752.79,0.00020273,2]
[363517884,1748748660331,-1068.7,0.00020273,2]
[363517885,1748748660341,-715.84,0.00020273,2]
[363517886,1748748660350,-430.0,0.00020273,2]
[363517887,1748748660359,-166.0,0.00020274,2]
[363517888,1748748660369,-151.0,0.00020279,2]
[363517889,1748748660379,-241.02344,0.00020279,2]
[363517890,1748748660389,-457.848527,0.00020279,2]
[363517891,1748748660399,-457.848527,0.00020279,2]
[363517892,1748748660409,-3908.37,0.0002031,2]
[363517893,1748748660419,-4939.6392469,0.00020346,2]
[363517894,1748748660429,-892.0,0.00020481,2]
[363517895,1748748660438,-1149.11783406,0.00020486,3]
[363517896,1748748660449,-1221.3789246,0.00020514,2]
[363517897,1748748660459,-505.26622601,0.00020514,2]
[363517898,1748748660468,-503.27683097,0.00020514,2]
[363517899,1748748660478,-1500.0,0.00020514,2]
[363517900,1748748660488,-503.00122784,0.00020521,2]
[363517901,1748748660497,-1019.70268838,0.00020521,2]
[363517902,1748748660507,-236.406393,0.00020547,2]
[363517903,1748748660518,-236.406393,0.00020547,2]
[363517904,1748748660528,-416.55791971,0.00020547,2]
[363517905,1748748660538,-637.65,0.00020547,2]
[363517906,1748748660548,-660.33,0.00020547,2]
[363517907,1748748660559,-1561.7,0.00020547,2]
[363517908,1748748660569,-452.99,0.00020547,2]
[363517909,1748748660579,-430.0,0.00020547,2]
[363517910,1748748660590,-430.0,0.00020547,2]
[363517911,1748748660600,-527.07,0.00020547,2]
[363517912,1748748660610,-430.0,0.00020547,2]
[363517913,1748748660620,-688.59,0.00020547,2]
[363517914,1748748660630,-1200.71,0.00020547,2]
[363517915,1748748660640,-430.0,0.00020547,2]
[363517916,1748748660650,-430.0,0.00020547,2]
[363517917,1748748660661,-430.91,0.00020547,2]
[363517918,1748748660671,-1307.73,0.00020547,2]
[363517919,1748748660681,-1644.6,0.00020547,2]
[363517920,1748748660691,-430.0,0.00020547,2]
[363517921,1748748660705,-752.79,0.00020547,2]
[363517922,1748748660715,-1068.7,0.00020547,2]
[363517923,1748748660725,-715.84,0.00020547,2]
[363517924,1748748660735,-430.0,0.00020547,2]
[363517925,1748748660746,-151.0,0.00020553,2]
[363517926,1748748660755,-151.0,0.00020553,2]
[363517927,1748748660765,-303.31900971,0.00020585,2]
[363517928,1748748660775,-500.0,0.00020585,2]
[363517929,1748748660785,-309.6106627,0.00020661,2]
[363517930,1748748660795,-1149.11783406,0.00020762,3]
[363517931,1748748660804,-4939.6392469,0.00020792,2]
[363517932,1748748660814,-116803.0414016,0.00020803,2]
[363517933,1748748660823,-215.0738,0.00020819,2]
[363517934,1748748660832,-637.65,0.00020821,2]
[363517935,1748748660843,-660.33,0.00020821,2]
[363517936,1748748660852,-1561.7,0.00020821,2]
[363517937,1748748660862,-452.99,0.00020821,2]
[363517938,1748748660872,-356.43,0.00020821,2]
[363517939,1748748660881,-430.0,0.00020821,2]
[363517940,1748748660891,-527.07,0.00020821,2]
[363517941,1748748660978,-446.92466982,0.00020821,2]
[363517942,1748748660987,-688.59,0.00020821,2]
[363517943,1748748660996,-1200.71,0.00020821,2]
[363517944,1748748661005,-430.0,0.00020821,2]
[363517945,1748748661016,-430.0,0.00020821,2]
[363517946,1748748661025,-430.91,0.00020821,2]
[363517947,1748748661035,-1307.73,0.00020821,2]
[363517948,1748748661044,-1644.6,0.00020821,2]
[363517949,1748748661054,-443.32,0.00020821,2]
[363517950,1748748661063,-752.79,0.00020821,2]
[363517951,1748748661073,-1068.7,0.00020821,2]
[363517952,1748748661083,-715.84,0.00020821,2]
[363517953,1748748661095,-430.0,0.00020821,2]
[363517954,1748748661105,-5052.85,0.00021,2]
[363517955,1748748661115,-151.0,0.00021,2]
[363517956,1748748661128,-151.0,0.00021,2]
[363517957,1748748661139,-151.0,0.00021,2]
[363517958,1748748661150,-203.557395,0.00021,2]
[363517959,1748748661160,-203.557395,0.00021,2]
[363517960,1748748661170,-1322.167745,0.00021,2]
[363517961,1748748661180,-1322.167745,0.00021,2]
[363517962,1748748661190,-1149.11783406,0.00021038,4]
[363517963,1748748661200,-2000.0,0.00021062,2]
[363517964,1748748661210,-637.65,0.00021095,2]
[363517965,1748748661221,-660.33,0.00021095,2]
[363517966,1748748661231,-1561.7,0.00021095,2]
[363517967,1748748661240,-452.99,0.00021095,2]
[363517968,1748748661250,-430.0,0.00021095,2]
[363517969,1748748661260,-527.07,0.00021095,2]
[363517970,1748748661270,-688.59,0.00021095,2]
[363517971,1748748661280,-1200.71,0.00021095,2]
[363517972,1748748661290,-203.25,0.00021095,2]
[363517973,1748748661301,-430.0,0.00021095,2]
[363517974,1748748661311,-430.91,0.00021095,2]
[363517975,1748748661321,-1307.73,0.00021095,2]
[363517976,1748748661332,-1644.6,0.00021095,2]
[363517977,1748748661342,-752.79,0.00021095,2]
[363517978,1748748661352,-1068.7,0.00021095,2]
[363517979,1748748661363,-715.84,0.00021095,2]
[363517980,1748748661372,-4690.04,0.00021123,2]
[363517981,1748748661382,-1000.0,0.00021133,2]
[363517982,1748748661392,-23331.60002563,0.00021155,3]
[363517983,1748748661401,-7980.80919794,0.00021155,2]
[363517984,1748748661417,-1912.66309767,0.00021155,2]
[363517985,1748748661549,-709.16309492,0.00021155,2]
[363517986,1748748676125,156.5,0.00024658,120]
[363517987,1748748757211,157.02558283,0.00024016,120]
[363517988,1748748821814,5505.0,0.00024658,120]
[363517990,1748749056926,656.871177,0.00013699,2]
[363517991,1748749298984,154.11317998,6.8e-07,2]
[363517993,1748749421199,505.13595294,0.00015,2]
[363517994,1748749421225,4494.86404706,0.00015,2]
[363518002,1748749599610,155.59251102,6.8e-07,2]
[363518003,1748749599707,155.59251102,6.8e-07,2]
[363518004,1748749599803,155.59251102,6.8e-07,2]
[363518005,1748749599902,155.59251102,6.8e-07,2]
[363518006,1748749623846,5000.0,0.00015,2]
[363518008,1748749639122,-471.39904617,0.00015435,2]
[363518009,1748749654091,-1243.75173973,0.0001528,2]
[363518017,1748749752119,-3671.53224165,0.0001528,2]
[363518025,1748749827139,785.9238036,0.00015,2]
[363518026,1748749827163,3688.69677152,0.00015,2]
[363518040,1748749832714,-972.0,0.00015434,2]
[363518041,1748749832724,-8521.45095383,0.00015435,2]
[363518042,1748749832734,-300.0,0.00015437,2]
[363518043,1748749832743,-689.3809104,0.00015438,2]
[363518044,1748749832752,-186.486606,0.00015438,2]
[363518045,1748749832762,-1081.76865977,0.00016338,2]
[363518081,1748749838515,-1548.18315251,0.00016338,2]
[363518083,1748749838528,-362.07763863,0.00016338,2]
[363518086,1748749838542,-2475.67369738,0.00016428,2]
[363518088,1748749838555,-1052.25,0.00016428,3]
[363518091,1748749838568,-526.13,0.00016428,3]
[363518093,1748749838582,-263.06,0.00016428,3]
[363518095,1748749838596,-789.22,0.00016428,3]
[363518098,1748749838609,-58.74593662,0.00016436,2]
[363518101,1748749838626,-241.25406338,0.00016436,2]
[363518103,1748749838642,-500.0,0.00016437,2]
[363518106,1748749838656,-14.63568832,0.00016437,2]
[363518109,1748749838683,-138.20067308,0.00016437,2]
[363518112,1748749838698,-500.0,0.00016437,2]
[363518114,1748749838712,-500.0,0.00016437,2]
[363518117,1748749838725,-270.94625688,0.00016437,2]
[363518120,1748749838739,-179.55918664,0.00016437,2]
[363518123,1748749838751,-161.7055218,0.00016437,2]
[363518125,1748749838765,-500.0,0.00016437,2]
[363518127,1748749838775,-500.0,0.00016437,2]
[363518129,1748749838786,-500.0,0.00016437,2]
[363518132,1748749838799,-267.97296342,0.00016437,2]
[363518134,1748749838810,-500.0,0.00016437,2]
[363518136,1748749838823,-500.0,0.00016437,2]
[363518139,1748749838836,-500.0,0.00016437,2]
[363518141,1748749838850,-500.0,0.00016437,2]
[363518143,1748749838862,-500.0,0.00016437,2]
[363518146,1748749838876,-461.74426056,0.00016437,2]
[363518148,1748749838890,-500.0,0.00016437,2]
[363518150,1748749838904,-500.0,0.00016437,2]
[363518152,1748749838916,-500.0,0.00016437,2]
[363518154,1748749838927,-500.0,0.00016437,2]
[363518156,1748749838937,-430.0,0.00016438,2]
[363518158,1748749838948,-430.0,0.00016438,2]
[363518160,1748749838960,-470.0,0.00016438,2]
[363518162,1748749838974,-430.0,0.00016438,2]
[363518165,1748749838988,-470.34667501,0.00016438,2]
[363518167,1748749839003,-430.0,0.00016438,2]
[363518169,1748749839014,-430.0,0.00016438,2]
[363518171,1748749839026,-430.0,0.00016438,2]
[363518173,1748749839038,-430.0,0.00016438,2]
[363518175,1748749839052,-270.0,0.00016438,2]
[363518177,1748749839071,-430.0,0.00016438,2]
[363518179,1748749839083,-430.0,0.00016438,2]
[363518181,1748749839095,-430.0,0.00016438,2]
[363518183,1748749839107,-430.0,0.00016438,2]
[363518185,1748749839120,-430.0,0.00016438,2]
[363518188,1748749839140,-430.0,0.00016438,2]
[363518190,1748749839153,-430.0,0.00016438,2]
[363518193,1748749839166,-430.0,0.00016438,2]
[363518195,1748749839180,-430.0,0.00016438,2]
[363518197,1748749839192,-182.09002681,0.00016438,2]
[363518199,1748749839205,-430.0,0.00016438,2]
[363518201,1748749839218,-430.0,0.00016438,2]
[363518204,1748749839231,-226.25348547,0.00016438,2]
[363518205,1748749839243,-430.0,0.00016438,2]
[363518207,1748749839259,-430.0,0.00016438,2]
[363518209,1748749839271,-430.0,0.00016438,2]
[363518212,1748749839283,-430.0,0.00016438,2]
[363518214,1748749839295,-430.0,0.00016438,2]
[363518216,1748749839307,-430.0,0.00016438,2]
[363518218,1748749839319,-432.69597213,0.00016438,2]
[363518219,1748749839331,-325.37708043,0.00016438,2]
[363518221,1748749839343,-430.0,0.00016438,2]
[363518224,1748749839355,-517.75104682,0.00016438,2]
[363518226,1748749839368,-430.0,0.00016438,2]
[363518228,1748749839379,-436.58317014,0.00016438,2]
[363518229,1748749839390,-556.1101045,0.00016438,2]
[363518231,1748749839402,-435.58672053,0.00016438,2]
[363518233,1748749839414,-430.0,0.00016438,2]
[363518235,1748749839425,-430.0,0.00016438,2]
[363518238,1748749839437,-430.0,0.00016438,2]
[363518240,1748749839451,-430.0,0.00016438,2]
[363518242,1748749839463,-430.0,0.00016438,2]
[363518244,1748749839475,-188.93455288,0.00016438,2]
[363518246,1748749839487,-445.46472631,0.00016438,2]
[363518248,1748749839500,-430.0,0.00016438,2]